[Event "AUT-ch U18-Open 2025"]
[Site "Fuerstenfeld"]
[Date "2025.04.17"]
[Round "7.1"]
[White "Gold, Theodor"]
[Black "Balint, Peter"]
[Result "0-1"]
[Annotator "RC"]
[ECO "C47"]
[WhiteElo "2066"]
[BlackElo "2366"]
[PlyCount "88"]
[EventDate "2025.04.12"]
[EventType "swiss"]
[EventCountry "AUT"]
[SourceTitle "playchess.com"]
[Source "ChessBase"]
[SourceQuality "1"]
[TimeControl "5400+30"]

1. e4 {[%emt 0:00:03]} e5 {[%emt 0:00:10]} 2. Nf3 {[%emt 0:00:06]} Nc6 {[%emt 0:00:03]} 3. Nc3 {[%emt 0:00:08]} Nf6 {[%emt 0:02:03]} 4. d4 {[%emt 0:00:07]} exd4 {[%emt 0:00:05]} 5. Nxd4 {[%emt 0:00:06]} Bb4 {[%emt 0:00:49]} 6. Nxc6 {[%emt 0:00:07]} bxc6 {[%emt 0:00:03]} 7. Bd3 {[%emt 0:00:09]} d5 {[%emt 0:00:07]} 8. exd5 {[%emt 0:00:09]} cxd5 {[%emt 0:00:04]} 9. O-O {[%emt 0:00:10]} O-O {[%emt 0:00:05]} 10. Bg5 {[%emt 0:00:18]} c6 {[%emt 0:00:03]} 11. Qf3 {[%emt 0:00:41]} Bd6 {[%emt 0:02:29]} 12. h3 {[%emt 0:11:46]} Rb8 {[%emt 0:00:32]} 13. b3 {[%emt 0:06:06]} h6 {[%emt 0:24:51]} 14. Bf4 {[%emt 0:04:22]} Rb4 {[%emt 0:01:38]} 15. Ne2 {[%emt 0:03:47]} c5 {[%emt 0:05:14]} 16. Rad1 {[%emt 0:16:29]} Bb7 {[%emt 0:03:36]} 17. Bxd6 {[%emt 0:08:26]} Qxd6 {[%emt 0:00:10]} 18. Ng3 {[%emt 0:01:46]} g6 {[%emt 0:34:19]} 19. Rfe1 {[%emt 0:03:50]} h5 {[%emt 0:01:57]} 20. c3 {[%emt 0:05:11]} Rb6 {[%emt 0:05:19]} 21. Qe3 {[%emt 0:03:14]} h4 {[%emt 0:02:10]} 22. Ne2 {[%emt 0:02:19]} Nh5 {[%emt 0:02:04]} 23. Bc2 {[%emt 0:16:11]} Rc8 {[%emt 0:02:03]} 24. Nc1 {[%emt 0:01:52]} Qf6 {[%emt 0:01:07]} 25. Qe5 {[%emt 0:01:32]} Kg7 {[%emt 0:01:17]} 26. Nd3 {[%emt 0:01:09]} Re6 {[%emt 0:00:08]} 27. Qxf6+ {[%emt 0:00:15]} Kxf6 {[%emt 0:00:04]} 28. Rxe6+ {[%emt 0:00:22]} fxe6 {[%emt 0:00:09]} 29. Re1 {[%emt 0:03:48]} c4 {[%emt 0:01:36]} 30. bxc4 {[%emt 0:03:39]} Rxc4 {[%emt 0:00:16]} 31. Ne5 {[%emt 0:01:49]} Rxc3 {[%emt 0:00:07]} 32. Ng4+ {[%emt 0:00:26]} Ke7 {[%emt 0:01:02]} 33. Bxg6 {[%emt 0:00:46]} Nf4 {[%emt 0:00:33]} 34. Bb1 {[%emt 0:00:40]} d4 {[%emt 0:00:41]} 35. Be4 {[%emt 0:01:19]} Ba6 {[%emt 0:00:13]} 36. Ne5 {[%emt 0:01:36]} d3 {[%emt 0:01:21]} 37. Rd1 {[%emt 0:00:48]} Kd6 {[%emt 0:06:20]} 38. Nf3 {[%emt 0:00:09]} Rc2 {[%emt 0:00:24]} 39. a4 {[%emt 0:03:36]} Rb2 {[%emt 0:03:11]} 40. Ne1 {[%emt 0:00:33]} Ne2+ {[%emt 0:00:19]} 41. Kh2 {[%emt 0:00:23]} Nc3 {[%emt 0:00:05]} 42. Nxd3 {[%emt 0:00:43]} Nxd1 {[%emt 0:00:05]} 43. Nxb2 {[%emt 0:00:04]} Nxb2 {[%emt 0:00:03]} 44. Bc2 {[%emt 0:00:37]} Nd3 {[%emt 0:00:21]} 0-1

[Event "AUT-ch U18-Open 2025"]
[Site "Fuerstenfeld"]
[Date "2025.04.17"]
[Round "7.2"]
[White "Gschiel, Alexander"]
[Black "Leitgeb, Julian"]
[Result "1/2-1/2"]
[Annotator "RC"]
[ECO "E63"]
[WhiteElo "2317"]
[BlackElo "2313"]
[PlyCount "61"]
[EventDate "2025.04.12"]
[EventType "swiss"]
[EventCountry "AUT"]
[SourceTitle "playchess.com"]
[Source "ChessBase"]
[SourceQuality "1"]
[TimeControl "5400+30"]

1. Nf3 {[%emt 0:00:09]} Nf6 {[%emt 0:00:07]} 2. g3 {[%emt 0:00:07]} g6 {[%emt 0:00:19]} 3. Bg2 {[%emt 0:00:16]} Bg7 {[%emt 0:00:01]} 4. O-O {[%emt 0:00:10]} O-O {[%emt 0:00:07]} 5. c4 {[%emt 0:00:16]} d6 {[%emt 0:00:08]} 6. d4 {[%emt 0:00:31]} Nc6 {[%emt 0:00:13]} 7. Nc3 {[%emt 0:00:26]} a6 {[%emt 0:02:03]} 8. e4 {[%emt 0:03:32]} Bg4 {[%emt 0:03:24]} 9. Be3 {[%emt 0:05:46]} Nd7 {[%emt 0:06:17]} 10. Qd2 {[%emt 0:04:57]} Bxf3 {[%emt 0:04:25]} 11. Bxf3 {[%emt 0:00:07]} e5 {[%emt 0:00:07]} 12. d5 {[%emt 0:02:04]} Nd4 {[%emt 0:00:11]} 13. Bg2 {[%emt 0:00:25]} c5 {[%emt 0:02:47]} 14. dxc6 {[%emt 0:05:20]} bxc6 {[%emt 0:00:28]} 15. f4 {[%emt 0:01:12]} Rb8 {[%emt 0:08:19]} 16. b3 {[%emt 0:03:42]} Qa5 {[%emt 0:03:54]} 17. Kh1 {[%emt 0:09:16]} Kh8 {[%emt 0:15:56]} 18. Rac1 {[%emt 0:10:51]} c5 {[%emt 0:04:50]} 19. f5 {[%emt 0:01:39]} f6 {[%emt 0:03:30]} 20. h4 {[%emt 0:03:11]} Qd8 {[%emt 0:03:43]} 21. g4 {[%emt 0:06:00]} g5 {[%emt 0:03:54]} 22. hxg5 {[%emt 0:06:40]} fxg5 {[%emt 0:00:19]} 23. Bxg5 {[%emt 0:00:05]} Bf6 {[%emt 0:00:12]} 24. Bxf6+ {[%emt 0:00:46]} Nxf6 {[%emt 0:00:25]} 25. Bf3 {[%emt 0:02:19]} Nxg4 {[%emt 0:03:31]} 26. Bxg4 {[%emt 0:00:53]} Qh4+ {[%emt 0:00:05]} 27. Qh2 {[%emt 0:00:05]} Qxg4 {[%emt 0:00:08]} 28. Qg2 {[%emt 0:12:58]} Qh4+ {[%emt 0:04:06]} 29. Qh2 {[%emt 0:00:04]} Qg4 {[%emt 0:03:35]} 30. Qg2 {[%emt 0:00:04]} Qh4+ {[%emt 0:01:58]} 31. Qh2 {[%emt 0:00:04]} 1/2-1/2

[Event "AUT-ch U18-Open 2025"]
[Site "Fuerstenfeld"]
[Date "2025.04.17"]
[Round "7.3"]
[White "Wendl, Philipp"]
[Black "Loretz, Jonas"]
[Result "1-0"]
[Annotator "RC"]
[ECO "A28"]
[WhiteElo "2268"]
[BlackElo "1869"]
[PlyCount "63"]
[EventDate "2025.04.12"]
[EventType "swiss"]
[EventCountry "AUT"]
[SourceTitle "playchess.com"]
[Source "ChessBase"]
[SourceQuality "1"]
[TimeControl "5400+30"]

1. c4 {[%emt 0:00:04]} e5 {[%emt 0:00:19]} 2. Nc3 {[%emt 0:00:09]} Nf6 {[%emt 0:00:32]} 3. Nf3 {[%emt 0:00:07]} Nc6 {[%emt 0:00:24]} 4. e4 {[%emt 0:00:06]} Bc5 {[%emt 0:03:28]} 5. Nxe5 {[%emt 0:00:07]} Nxe5 {[%emt 0:02:36]} 6. d4 {[%emt 0:00:07]} Bxd4 {[%emt 0:01:47]} 7. Qxd4 {[%emt 0:00:36]} Nc6 {[%emt 0:00:07]} 8. Qd1 {[%emt 0:01:50]} d6 {[%emt 0:02:54]} 9. Be2 {[%emt 0:01:02]} h6 {[%emt 0:02:36]} 10. O-O {[%emt 0:01:23]} O-O {[%emt 0:00:23]} 11. Be3 {[%emt 0:09:28]} Re8 {[%emt 0:04:01]} 12. f3 {[%emt 0:00:51]} b6 {[%emt 0:04:59]} 13. Bf2 {[%emt 0:01:44]} Ne5 {[%emt 0:04:36]} 14. Qd2 {[%emt 0:01:55]} Bb7 {[%emt 0:02:53]} 15. Rad1 {[%emt 0:02:22]} Qe7 {[%emt 0:05:01]} 16. Rfe1 {[%emt 0:02:53]} Rad8 {[%emt 0:02:28]} 17. Nd5 {[%emt 0:02:27]} Nxd5 {[%emt 0:06:58]} 18. cxd5 {[%emt 0:01:26]} a6 {[%emt 0:03:41]} 19. Rc1 {[%emt 0:02:20]} Rc8 {[%emt 0:04:36]} 20. Rc3 {[%emt 0:01:47]} Nd7 {[%emt 0:03:06]} 21. Bf1 {[%emt 0:03:30]} b5 {[%emt 0:05:13]} 22. Rec1 {[%emt 0:02:47]} Nb6 {[%emt 0:02:10]} 23. b3 {[%emt 0:05:25]} f5 {[%emt 0:03:43]} 24. Re1 {[%emt 0:04:07]} fxe4 {[%emt 0:06:13]} 25. fxe4 {[%emt 0:00:21]} Rf8 {[%emt 0:02:52]} 26. Rg3 {[%emt 0:09:27]} Kh7 {[%emt 0:04:31]} 27. Bd4 {[%emt 0:01:06]} Rg8 {[%emt 0:04:56]} 28. Bd3 {[%emt 0:01:12]} g6 {[%emt 0:04:07]} 29. Rh3 {[%emt 0:01:31]} h5 {[%emt 0:02:02]} 30. e5 {[%emt 0:00:59]} dxe5 {[%emt 0:01:50]} 31. Rxh5+ {[%emt 0:00:08]} Kg7 {[%emt 0:00:23]} 32. Rhxe5 {[%emt 0:00:25]} 1-0

[Event "AUT-ch U18-Open 2025"]
[Site "Fuerstenfeld"]
[Date "2025.04.17"]
[Round "7.4"]
[White "Gruenwald, Simon"]
[Black "Jetzl, Julian"]
[Result "0-1"]
[Annotator "NA RC"]
[ECO "B51"]
[WhiteElo "2101"]
[BlackElo "2146"]
[PlyCount "110"]
[EventDate "2025.04.12"]
[EventType "swiss"]
[EventCountry "AUT"]
[SourceTitle "playchess.com"]
[Source "ChessBase"]
[SourceQuality "1"]
[TimeControl "5400+30"]

1. e4 {[%emt 0:00:02]} c5 {[%emt 0:00:08]} 2. Nf3 {[%emt 0:00:04]} d6 {[%emt 0:00:10]} 3. Bb5+ {[%emt 0:00:05]} Nd7 {[%emt 0:00:11]} 4. a4 {[%emt 0:00:02]} Ngf6 {[%emt 0:00:16]} 5. Nc3 {[%emt 0:00:01]} g6 {[%emt 0:00:09]} 6. a5 {[%emt 0:00:04]} Bg7 {[%emt 0:00:32]} 7. d4 {[%emt 0:01:05]} cxd4 {[%emt 0:00:24]} 8. Nxd4 {[%emt 0:00:03]} O-O {[%emt 0:00:58]} 9. O-O {[%emt 0:00:10]} a6 {[%emt 0:07:49]} 10. Bc4 {[%emt 0:05:06]} Ne5 {[%emt 0:06:09]} 11. Bb3 {[%emt 0:06:19]} Bd7 {[%emt 0:05:48]} 12. f4 {[%emt 0:05:18]} Nc6 {[%emt 0:01:13]} 13. Nxc6 {[%emt 0:03:16]} Bxc6 {[%emt 0:00:38]} 14. e5 {[%emt 0:04:44]} dxe5 {[%emt 0:06:31]} 15. fxe5 {[%emt 0:00:08]} Qxd1 {[%emt 0:01:59]} 16. Rxd1 {[%emt 0:00:30]} Ng4 {[%emt 0:05:19]} 17. e6 {[%emt 0:00:00]} f5 {[%emt 0:05:28]} 18. Nd5 $14 {[%emt 0:02:43]} Rae8 {[%emt 0:07:33]} 19. c3 {[%emt 0:02:21]} Nf6 {[%emt 0:02:02]} 20. Nb6 {[%emt 0:02:28]} Kh8 {[%emt 0:07:43]} 21. Bf4 {[%emt 0:00:55]} Rd8 {[%emt 0:05:07]} 22. Bc7 {[%emt 0:00:47]} Rxd1+ {[%emt 0:01:33]} 23. Rxd1 {[%emt 0:00:06]} Bh6 {[%emt 0:01:01]} 24. Nd7 {[%emt 0:01:33]} Rc8 {[%emt 0:04:53]} 25. Nxf6 {[%emt 0:05:35]} Rxc7 {[%emt 0:01:17]} 26. Nd5 {[%emt 0:00:11]} Bxd5 {[%emt 0:00:43]} 27. Rxd5 {[%emt 0:00:02]} Kg7 {[%emt 0:01:22]} 28. Rd7 {[%emt 0:07:12]} Bf4 {[%emt 0:02:18]} 29. Bd5 {[%emt 0:00:04]} b6 {[%emt 0:01:40]} 30. Rd8 {[%emt 0:07:26]} bxa5 {[%emt 0:01:21]} 31. Ra8 {[%emt 0:00:27]} Bc1 {[%emt 0:01:30]} 32. Rb8 {[%emt 0:03:13]} a4 {[%emt 0:01:19]} 33. c4 {[%emt 0:03:04]} a3 {[%emt 0:00:30]} 34. bxa3 {[%emt 0:00:46]} Bxa3 {[%emt 0:00:08]} 35. Kf1 {[%emt 0:01:51]} Ra7 {[%emt 0:03:22]} 36. Ke2 {[%emt 0:01:40]} Bd6 {[%emt 0:00:39]} 37. Rb2 {[%emt 0:04:18]} Bxh2 {[%emt 0:00:40]} 38. c5 {[%emt 0:00:02]} Kf6 {[%emt 0:06:20]} 39. Kd3 {[%emt 0:00:01]} a5 {[%emt 0:03:14]} 40. Kc4 {[%emt 0:00:17]} a4 {[%emt 0:04:09]} 41. Kb5 {[%emt 0:01:24]} a3 {[%emt 0:01:52]} 42. Rd2 {[%emt 0:00:59]} Bf4 {[%emt 0:01:02]} 43. Rc2 {[%emt 0:00:48]} Be5 {[%emt 0:02:20]} 44. Kb6 {[%emt 0:01:46]} Ra4 {[%emt 0:00:10]} 45. Kb5 {[%emt 0:00:48]} Rd4 {[%emt 0:01:23]} 46. Ba2 {[%emt 0:00:02]} g5 {[%emt 0:00:48]} 47. Bc4 {[%emt 0:00:40]} Rd1 {[%emt 0:01:03]} 48. Ba2 {[%emt 0:00:17]} Rd8 {[%emt 0:00:32]} 49. c6 {[%emt 0:02:39]} h5 {[%emt 0:00:47]} 50. c7 {[%emt 0:00:37]} Rc8 {[%emt 0:00:41]} 51. Kb6 {[%emt 0:00:23]} h4 {[%emt 0:00:11]} 52. Bd5 {[%emt 0:00:24]} g4 {[%emt 0:00:19]} 53. Ra2 {[%emt 0:01:12]} Bxc7+ {[%emt 0:00:14]} 54. Kb7 {[%emt 0:00:02]} Rd8 {[%emt 0:00:06]} 55. Bc6 {[%emt 0:00:14]} Bd6 {[%emt 0:00:27]} 0-1

[Event "AUT-ch U18-Open 2025"]
[Site "Fuerstenfeld"]
[Date "2025.04.17"]
[Round "7.5"]
[White "Archan, Elikya"]
[Black "Hengl, Philip"]
[Result "0-1"]
[Annotator "RC"]
[ECO "C02"]
[WhiteElo "2048"]
[BlackElo "2205"]
[PlyCount "76"]
[EventDate "2025.04.12"]
[EventType "swiss"]
[EventCountry "AUT"]
[SourceTitle "playchess.com"]
[Source "ChessBase"]
[SourceQuality "1"]
[TimeControl "5400+30"]

1. e4 {[%emt 0:00:03]} e6 {[%emt 0:00:14]} 2. d4 {[%emt 0:00:04]} d5 {[%emt 0:00:05]} 3. e5 {[%emt 0:00:29]} c5 {[%emt 0:00:14]} 4. c3 {[%emt 0:00:05]} Bd7 {[%emt 0:00:04]} 5. Nf3 {[%emt 0:00:06]} Qb6 {[%emt 0:00:04]} 6. a3 {[%emt 0:00:07]} Bb5 {[%emt 0:00:08]} 7. b4 {[%emt 0:00:12]} cxb4 {[%emt 0:02:00]} 8. Bxb5+ {[%emt 0:01:00]} Qxb5 {[%emt 0:01:21]} 9. axb4 {[%emt 0:01:16]} Nd7 {[%emt 0:02:14]} 10. Na3 {[%emt 0:01:45]} Qc6 {[%emt 0:00:21]} 11. Qd3 {[%emt 0:00:16]} Nb6 {[%emt 0:01:49]} 12. Qb5 {[%emt 0:07:34]} Ne7 {[%emt 0:02:30]} 13. O-O {[%emt 0:01:45]} a6 {[%emt 0:01:07]} 14. Qxc6+ {[%emt 0:01:20]} Nxc6 {[%emt 0:00:08]} 15. Bd2 {[%emt 0:00:08]} Be7 {[%emt 0:01:11]} 16. Rfc1 {[%emt 0:02:42]} Kd7 {[%emt 0:01:09]} 17. Ne1 {[%emt 0:02:12]} Na7 {[%emt 0:05:15]} 18. Kf1 {[%emt 0:09:58]} Nb5 {[%emt 0:01:11]} 19. Ke2 {[%emt 0:00:32]} Nxa3 {[%emt 0:02:30]} 20. Rxa3 {[%emt 0:00:02]} Nc4 {[%emt 0:00:12]} 21. Ra2 {[%emt 0:00:39]} Nxd2 {[%emt 0:00:19]} 22. Rxd2 {[%emt 0:00:47]} Bg5 {[%emt 0:00:06]} 23. Nd3 {[%emt 0:00:15]} Bxd2 {[%emt 0:00:04]} 24. Kxd2 {[%emt 0:00:09]} b6 {[%emt 0:01:41]} 25. g3 {[%emt 0:01:17]} a5 {[%emt 0:03:17]} 26. b5 {[%emt 0:01:08]} g5 {[%emt 0:06:40]} 27. h3 {[%emt 0:01:04]} Ra7 {[%emt 0:04:29]} 28. Rb1 {[%emt 0:01:24]} Rg8 {[%emt 0:01:25]} 29. Kc2 {[%emt 0:01:13]} Rg6 {[%emt 0:01:55]} 30. f3 {[%emt 0:01:10]} Ra8 {[%emt 0:01:50]} 31. Kb3 {[%emt 0:01:06]} Rgg8 {[%emt 0:00:50]} 32. Rc1 {[%emt 0:01:01]} a4+ {[%emt 0:02:52]} 33. Kb4 {[%emt 0:00:27]} Rgc8 {[%emt 0:00:18]} 34. Ka3 {[%emt 0:01:05]} Ra5 {[%emt 0:00:09]} 35. Nb2 {[%emt 0:00:51]} Rxb5 {[%emt 0:00:11]} 36. Nxa4 {[%emt 0:00:36]} Ra8 {[%emt 0:00:09]} 37. Ra1 {[%emt 0:00:21]} Ke7 {[%emt 0:00:22]} 38. h4 {[%emt 0:00:34]} Rxa4+ {[%emt 0:00:15]} 0-1

[Event "AUT-ch U18-Open 2025"]
[Site "Fuerstenfeld"]
[Date "2025.04.17"]
[Round "7.6"]
[White "Fitz, Jonathan David"]
[Black "Zaytsev, Alexander"]
[Result "1/2-1/2"]
[Annotator "RC"]
[ECO "D46"]
[WhiteElo "1918"]
[BlackElo "2178"]
[PlyCount "40"]
[EventDate "2025.04.12"]
[EventType "swiss"]
[EventCountry "AUT"]
[SourceTitle "playchess.com"]
[Source "ChessBase"]
[SourceQuality "1"]
[TimeControl "5400+30"]

1. d4 {[%emt 0:00:04]} d5 {[%emt 0:00:06]} 2. c4 {[%emt 0:00:07]} c6 {[%emt 0:00:04]} 3. Nf3 {[%emt 0:00:05]} Nf6 {[%emt 0:00:19]} 4. Nbd2 {[%emt 0:00:07]} Bf5 {[%emt 0:06:30]} 5. Nh4 {[%emt 0:00:06]} Bc8 {[%emt 0:02:15]} 6. Nhf3 {[%emt 0:00:44]} e6 {[%emt 0:00:40]} 7. e3 {[%emt 0:00:10]} Nbd7 {[%emt 0:00:50]} 8. Bd3 {[%emt 0:00:11]} Bd6 {[%emt 1:23:46]} 9. O-O {[%emt 0:00:50]} O-O {[%emt 0:00:00]} 10. e4 {[%emt 0:00:31]} dxe4 {[%emt 0:00:00]} 11. Nxe4 {[%emt 0:00:05]} Nxe4 {[%emt 0:00:00]} 12. Bxe4 {[%emt 0:00:09]} f5 {[%emt 0:00:00]} 13. Bc2 {[%emt 0:00:57]} Qf6 {[%emt 0:00:00]} 14. Re1 {[%emt 0:04:21]} h6 {[%emt 0:00:00]} 15. c5 {[%emt 0:00:24]} Bc7 {[%emt 0:00:00]} 16. Rxe6 {[%emt 0:00:50]} Qd8 {[%emt 0:00:00]} 17. Bb3 {[%emt 0:11:29]} Kh8 {[%emt 0:00:00]} 18. Rg6 {[%emt 0:13:06]} Kh7 {[%emt 0:00:00]} 19. Re6 {[%emt 0:19:07]} Kh8 {[%emt 0:00:00]} 20. Rg6 {[%emt 0:00:04]} Kh7 {[%emt 0:00:00]} 1/2-1/2

[Event "AUT-ch U18-Open 2025"]
[Site "Fuerstenfeld"]
[Date "2025.04.17"]
[Round "7.7"]
[White "Maier, Tobias"]
[Black "Zehetner, Robert"]
[Result "1/2-1/2"]
[Annotator "NA RC"]
[ECO "A35"]
[WhiteElo "1915"]
[BlackElo "1726"]
[PlyCount "79"]
[EventDate "2025.04.12"]
[EventType "swiss"]
[EventCountry "AUT"]
[SourceTitle "playchess.com"]
[Source "ChessBase"]
[SourceQuality "1"]
[TimeControl "5400+30"]

1. e4 {[%emt 0:00:06]} c6 {[%emt 0:00:00]} 2. c4 {[%emt 0:00:04]} d5 {[%emt 0:00:00]} 3. cxd5 {[%emt 0:00:03]} cxd5 {[%emt 0:00:00]} 4. exd5 {[%emt 0:00:04]} Nf6 {[%emt 0:00:00]} 5. Nc3 {[%emt 0:00:04]} Nxd5 {[%emt 0:00:14]} 6. Nf3 {[%emt 0:00:04]} Nc6 {[%emt 0:00:11]} 7. d4 {[%emt 0:00:02]} g6 {[%emt 0:00:33]} 8. Qb3 {[%emt 0:00:10]} Nxc3 {[%emt 0:00:53]} 9. Bc4 {[%emt 0:01:41]} Nd5 {[%emt 0:00:49]} 10. Bxd5 {[%emt 0:00:38]} e6 {[%emt 0:00:06]} 11. Bxc6+ {[%emt 0:00:09]} bxc6 {[%emt 0:00:12]} 12. O-O {[%emt 0:00:04]} f6 {[%emt 0:01:10]} 13. Re1 {[%emt 0:01:02]} Qd5 {[%emt 0:00:28]} 14. Qc2 {[%emt 0:00:06]} Kf7 {[%emt 0:01:07]} 15. Be3 {[%emt 0:03:13]} Bb7 {[%emt 0:01:53]} 16. a3 {[%emt 0:10:52]} Rc8 {[%emt 0:03:24]} 17. b4 {[%emt 0:01:05]} Be7 {[%emt 0:02:44]} 18. Rac1 {[%emt 0:01:05]} a5 {[%emt 0:01:23]} 19. Bd2 {[%emt 0:13:25]} axb4 {[%emt 0:03:33]} 20. Bxb4 {[%emt 0:01:53]} Bxb4 {[%emt 0:01:21]} 21. axb4 {[%emt 0:00:01]} Rb8 {[%emt 0:04:50]} 22. Qd2 {[%emt 0:02:54]} h6 {[%emt 0:09:25]} 23. Qf4 {[%emt 0:03:17]} Rbc8 {[%emt 0:16:18]} 24. Rc5 {[%emt 0:10:21]} Qd8 {[%emt 0:03:42]} 25. Ne5+ {[%emt 0:32:12]} Kg7 {[%emt 0:04:36]} 26. Nxg6 {[%emt 0:00:18]} Kxg6 {[%emt 0:04:04]} 27. Qg4+ {[%emt 0:00:05]} Kh7 {[%emt 0:02:07]} 28. Qxe6 {[%emt 0:00:03]} Rg8 {[%emt 0:05:17]} 29. Rf5 {[%emt 0:06:55]} Rg6 {[%emt 0:05:55]} 30. Qe4 {[%emt 0:10:44]} Kh8 {[%emt 0:01:41]} 31. b5 {[%emt 0:02:48]} Qd7 {[%emt 0:01:09]} 32. Re5 {[%emt 0:00:31]} Rg4 {[%emt 0:04:52]} 33. Re8+ {[%emt 0:00:16]} Rxe8 {[%emt 0:00:24]} 34. Qxe8+ {[%emt 0:00:03]} Qxe8 {[%emt 0:00:08]} 35. Rxe8+ {[%emt 0:00:02]} Kh7 {[%emt 0:00:20]} 36. bxc6 {[%emt 0:01:39]} Rxd4 {[%emt 0:01:27]} 37. h3 {[%emt 0:00:27]} Bxc6 {[%emt 0:01:56]} 38. Re6 {[%emt 0:00:02]} Bd5 {[%emt 0:01:04]} 39. Rxf6 {[%emt 0:00:01]} Kg7 {[%emt 0:00:28]} 40. Rb6 {[%emt 0:00:21]} 1/2-1/2

[Event "AUT-ch U18-Open 2025"]
[Site "Fuerstenfeld"]
[Date "2025.04.17"]
[Round "7.8"]
[White "Hake, Nils"]
[Black "Pedevilla, Luis"]
[Result "1-0"]
[Annotator "RC"]
[ECO "A50"]
[WhiteElo "2054"]
[BlackElo "1925"]
[PlyCount "49"]
[EventDate "2025.04.12"]
[EventType "swiss"]
[EventCountry "AUT"]
[SourceTitle "playchess.com"]
[Source "ChessBase"]
[SourceQuality "1"]
[TimeControl "5400+30"]

1. d4 {[%emt 0:00:03]} Nf6 {[%emt 0:01:16]} 2. c4 {[%emt 0:00:17]} b6 {[%emt 0:00:18]} 3. f3 {[%emt 0:01:22]} e6 {[%emt 0:00:46]} 4. e4 {[%emt 0:03:58]} d5 {[%emt 0:00:21]} 5. cxd5 {[%emt 0:00:50]} exd5 {[%emt 0:00:07]} 6. e5 {[%emt 0:00:23]} Nfd7 {[%emt 0:01:54]} 7. Nc3 {[%emt 0:00:51]} Bb7 {[%emt 0:00:33]} 8. f4 {[%emt 0:01:36]} g6 {[%emt 0:05:21]} 9. Nf3 {[%emt 0:00:56]} Bg7 {[%emt 0:00:11]} 10. Bd3 {[%emt 0:01:02]} f5 {[%emt 0:02:38]} 11. g4 {[%emt 0:08:35]} O-O {[%emt 0:09:49]} 12. gxf5 {[%emt 0:02:06]} gxf5 {[%emt 0:00:22]} 13. Be3 {[%emt 0:01:48]} a6 {[%emt 0:02:52]} 14. Qc2 {[%emt 0:02:10]} Bc8 {[%emt 0:01:11]} 15. Ng5 {[%emt 0:04:37]} Nxe5 {[%emt 0:01:17]} 16. dxe5 {[%emt 0:03:43]} d4 {[%emt 0:00:19]} 17. Bc4+ {[%emt 0:00:20]} Kh8 {[%emt 0:00:35]} 18. O-O-O {[%emt 0:00:35]} c5 {[%emt 0:00:16]} 19. Bf2 {[%emt 0:01:26]} b5 {[%emt 0:00:37]} 20. Nf7+ {[%emt 0:01:13]} Rxf7 {[%emt 0:00:08]} 21. Bxf7 {[%emt 0:00:05]} Bb7 {[%emt 0:00:35]} 22. Rhg1 {[%emt 0:01:18]} Qf8 {[%emt 0:01:04]} 23. Bd5 {[%emt 0:00:50]} dxc3 {[%emt 0:00:12]} 24. Bxb7 {[%emt 0:00:12]} cxb2+ {[%emt 0:00:14]} 25. Kb1 {[%emt 0:00:19]} 1-0